bitfinex/quotes_BTCUSD_20260221
["timestamp","ask_amount","ask_price","bid_price","bid_amount"]
[1771683906940,0.07293511,68555.0,68546.0,0.07294371]
[1771683907146,0.07293414,68555.0,68546.0,0.07294371]
[1771683907351,0.08369492,68556.0,68546.0,0.07294371]
[1771683907669,0.07293548,68554.0,68546.0,0.07306032]
[1771683908424,0.08369492,68556.0,68540.0,0.07310976]
[1771683908425,0.00950981,68556.0,68540.0,0.07310976]
[1771683908629,0.00950981,68556.0,68541.0,0.07294815]
[1771683908630,0.0729404,68550.0,68541.0,0.07294815]
[1771683908965,0.06590106,68550.0,68542.0,0.07294769]
[1771683909146,0.06590106,68550.0,68543.0,0.07294653]
[1771683909352,0.06590106,68550.0,68545.0,0.072944]
[1771683909556,0.07293711,68553.0,68544.0,0.07294569]
[1771683909789,0.07293711,68553.0,68542.0,0.0729478]
[1771683909977,0.07293711,68553.0,68540.0,0.07310996]
[1771683909978,0.34896009,68553.0,68540.0,0.07310996]
[1771683910192,0.06590106,68551.0,68540.0,0.00016]
[1771683910546,0.06590106,68546.0,68540.0,0.00016]
[1771683910843,0.06590106,68545.0,68540.0,0.00016]
[1771683911191,0.00950981,68547.0,68540.0,0.00016]
[1771683911412,0.00825981,68547.0,68540.0,0.07295006]
[1771683912124,0.00825981,68547.0,68539.0,0.07317107]
[1771683912326,0.06590106,68546.0,68532.0,0.00022]
[1771683912739,0.11531281,68555.0,68532.0,0.00022]
[1771683912741,0.07308883,68560.0,68547.0,0.34134158]
[1771683912940,0.14565516,68559.0,68549.0,0.07294046]
[1771683913139,0.07293178,68558.0,68548.0,0.07294156]
[1771683913347,0.13883187,68559.0,68549.0,0.07294052]
[1771683913749,0.06590106,68559.0,68551.0,0.07293781]
[1771683913968,0.21156526,68559.0,68551.0,0.07293781]
[1771683914177,0.07293,68559.0,68551.0,0.07293781]
[1771683914385,0.06590106,68558.0,68547.0,0.00010805]
[1771683914556,0.00016,68560.0,68556.0,0.07293275]
[1771683914974,0.00016,68560.0,68557.0,0.07293165]
[1771683915193,0.00016,68560.0,68556.0,0.07293275]
[1771683916399,0.07308893,68560.0,68551.0,0.07293768]
[1771683916715,0.00016,68560.0,68552.0,0.07293733]
[1771683917101,0.00016,68560.0,68551.0,0.07293768]
[1771683917294,0.00016,68560.0,68549.0,0.29175943]
[1771683917515,0.00016,68560.0,68554.0,0.07293423]
[1771683917744,0.00016,68560.0,68555.0,0.07293413]
[1771683917899,0.00016,68560.0,68554.0,0.07293516]
[1771683918095,0.00016,68560.0,68550.0,0.29175619]
[1771683918299,0.00016,68570.0,68562.0,0.07292587]
[1771683918636,0.00016,68570.0,68550.0,0.00016]
[1771683918637,0.07292375,68565.0,68556.0,0.07293239]
[1771683918863,0.13882481,68565.0,68555.0,0.07293203]
[1771683918997,0.13882481,68565.0,68556.0,0.07293307]
[1771683918998,0.07292467,68564.0,68556.0,0.07293307]
[1771683919199,0.42188146,68568.0,68550.0,0.00016]
[1771683919405,0.07292732,68562.0,68553.0,0.07293545]
[1771683919619,0.13882838,68562.0,68553.0,0.07293545]
[1771683919818,0.07292879,68561.0,68551.0,0.07293747]
[1771683920018,0.06590106,68560.0,68551.0,0.07293839]
[1771683920823,0.06590106,68560.0,68552.0,0.07293639]
[1771683921034,0.40549738,68570.0,68550.0,0.00016]
[1771683921036,0.0161113,68598.0,68550.0,0.34114801]
[1771683921279,0.00016,68620.0,68580.0,0.00016]
[1771683921281,0.02448,68616.0,68580.0,0.00016]
[1771683921494,0.01363878,68615.0,68600.0,0.00016]
[1771683921731,0.01349664,68619.0,68602.0,0.29153668]
[1771683921934,0.01349664,68619.0,68600.0,0.00016]
[1771683921935,0.01349664,68619.0,68610.0,0.02907561]
[1771683922222,0.39299577,68618.0,68600.0,0.00016]
[1771683922370,0.35519207,68614.0,68598.0,0.13160765]
[1771683922579,0.35519207,68614.0,68583.0,0.17279856]
[1771683922580,0.11366267,68610.0,68583.0,0.17524]
[1771683922795,0.11366267,68610.0,68589.0,0.07289777]
[1771683922796,0.34896009,68606.0,68589.0,0.07289777]
[1771683923015,0.34896009,68606.0,68583.0,0.17524]
[1771683923016,0.34896009,68602.0,68584.0,0.07290245]
[1771683923221,0.34896009,68598.0,68586.0,0.07290026]
[1771683923393,0.34896009,68596.0,68586.0,0.07290026]
[1771683923568,0.34896009,68596.0,68572.0,0.01704945]
[1771683923569,0.00016,68600.0,68572.0,0.01704945]
[1771683923570,0.00628343,68595.0,68572.0,0.01704945]
[1771683923775,0.00628343,68595.0,68570.0,0.00016]
[1771683923776,0.34896009,68589.0,68570.0,0.00016]
[1771683923976,0.34896009,68581.0,68570.0,0.00016]
[1771683924201,0.37218896,68579.0,68570.0,0.00016]
[1771683924400,0.37218896,68579.0,68560.0,0.17536]
[1771683924401,0.34896009,68579.0,68560.0,0.17536]
[1771683924621,0.02322887,68573.0,68560.0,0.17536]
[1771683924796,0.34896009,68569.0,68560.0,0.16774015]
[1771683925176,0.00016,68570.0,68550.0,0.00016]
[1771683925177,0.00016,68570.0,68554.0,0.16698759]
[1771683925401,0.00016,68570.0,68554.0,0.4834363]
[1771683925580,0.34896009,68577.0,68550.0,0.00016]
[1771683925581,0.34896009,68585.0,68577.0,0.07290999]
[1771683925779,0.1752,68595.0,68569.0,0.29167342]
[1771683925780,0.01349664,68581.0,68569.0,0.29167342]
[1771683925983,0.36257369,68581.0,68576.0,0.07291143]
[1771683926383,0.36257369,68581.0,68576.0,0.04891143]
[1771683927017,0.36257369,68581.0,68574.0,0.07291393]
[1771683927218,0.0136136,68581.0,68578.0,0.07290939]
[1771683927594,0.07289133,68596.0,68577.0,0.07291049]
[1771683927596,0.36565379,68628.0,68590.0,0.00016]
[1771683927802,0.00016,68640.0,68600.0,0.1865479]
[1771683927804,1e-08,68633.0,68600.0,0.1865479]
[1771683928009,0.00016,68640.0,68619.0,0.0877307]
[1771683928127,0.00016,68640.0,68601.0,0.1752]
[1771683928128,0.00016,68640.0,68628.0,0.07285575]
[1771683928129,0.00016,68630.0,68628.0,0.07285575]
[1771683928555,0.36581914,68640.0,68631.0,0.07285242]
[1771683928780,0.36581914,68640.0,68632.0,0.07285223]
[1771683929126,0.36581914,68640.0,68620.0,0.00016]
[1771683929333,0.36581914,68640.0,68633.0,0.07277203]
[1771683929754,0.36581914,68640.0,68620.0,0.00027701]
[1771683929755,0.00016,68640.0,68620.0,0.00027701]
[1771683929954,0.36565914,68639.0,68627.0,0.07285742]
[1771683930367,0.36565914,68639.0,68620.0,0.00027701]
[1771683930570,0.36565914,68639.0,68623.0,0.29144369]
[1771683930854,0.36565914,68639.0,68620.0,0.00027701]
[1771683930855,0.35108807,68639.0,68620.0,0.00027701]
[1771683931052,0.35108807,68639.0,68625.0,0.29143497]
[1771683931053,0.35156027,68639.0,68625.0,0.29143497]
[1771683931312,0.35156027,68639.0,68630.0,0.07285355]
[1771683931511,0.35156027,68639.0,68632.0,0.07285183]
[1771683931710,0.35156027,68639.0,68630.0,0.07285355]
[1771683931864,0.35156027,68639.0,68631.0,0.07285294]
[1771683932068,0.35156027,68639.0,68630.0,0.07285355]
[1771683932470,0.35156027,68639.0,68631.0,0.07285327]
[1771683932868,0.35176027,68639.0,68631.0,0.07285327]
[1771683932994,0.35176027,68639.0,68632.0,0.07285205]
[1771683933989,0.0006722,68639.0,68621.0,0.17185522]
[1771683934190,0.0006722,68639.0,68636.0,0.0728477]
[1771683934649,0.0006722,68639.0,68627.0,0.29142664]
[1771683934850,0.0006722,68639.0,68630.0,0.07285433]
[1771683935010,0.35108807,68638.0,68630.0,0.07285418]
[1771683935209,0.35108807,68638.0,68620.0,0.00027701]
[1771683935210,0.42393407,68638.0,68620.0,0.00027701]
[1771683935410,0.35108807,68637.0,68624.0,0.07286076]
[1771683935615,0.35108807,68637.0,68627.0,0.07285753]
[1771683935941,0.0006722,68639.0,68620.0,0.02498916]
[1771683935942,0.0002,68639.0,68620.0,0.02498916]
[1771683936139,0.0002,68639.0,68634.0,0.07284925]
[1771683936371,0.0002,68639.0,68634.0,0.07285006]
[1771683936560,0.0002,68639.0,68621.0,0.17178579]
[1771683936561,0.0002,68639.0,68631.0,0.07285268]
[1771683936757,0.0002,68639.0,68617.0,0.29147269]
[1771683937049,0.35118251,68638.0,68628.0,0.07285647]
[1771683937247,0.0002,68639.0,68633.0,0.07285117]
[1771683937453,0.0002,68639.0,68621.0,0.2914558]
[1771683937454,0.35138251,68639.0,68631.0,0.07285331]
[1771683937656,0.35138251,68639.0,68621.0,0.2914558]
[1771683937657,0.35138251,68639.0,68632.0,0.07285216]
[1771683938529,0.35138251,68639.0,68631.0,0.07285266]
[1771683938723,0.35138251,68639.0,68620.0,0.00027701]
[1771683938961,0.0002,68639.0,68622.0,0.07286189]
[1771683939166,0.0002,68639.0,68623.0,0.07286165]
[1771683939167,0.38187482,68634.0,68623.0,0.07286165]
[1771683939603,0.38187482,68634.0,68620.0,0.00027701]
[1771683939604,0.3587642,68633.0,68620.0,0.00027701]
[1771683939789,0.3587642,68630.0,68620.0,0.07314184]
[1771683940406,0.3587642,68630.0,68620.0,0.00027701]
[1771683940560,0.3587642,68630.0,68621.0,0.07286369]
[1771683941178,0.3587642,68630.0,68620.0,0.00027701]
[1771683941380,0.43161887,68630.0,68620.0,0.00027701]
[1771683941598,0.3587642,68630.0,68620.0,0.00027701]
[1771683941793,0.3587642,68628.0,68620.0,0.00027701]
[1771683941965,0.3587642,68628.0,68614.0,0.07287105]
[1771683942186,0.3587642,68628.0,68606.0,0.29151786]
[1771683942187,0.3587642,68628.0,68606.0,0.17508]
[1771683942188,0.29144491,68624.0,68606.0,0.17508]
[1771683942409,0.3587642,68622.0,68611.0,0.07287428]
[1771683942619,0.3587642,68622.0,68606.0,0.17508]
[1771683942620,0.3587642,68622.0,68609.0,0.07287632]
[1771683942810,0.0728682,68618.0,68602.0,0.29153646]
[1771683942968,0.02311062,68623.0,68598.0,0.17587399]
[1771683942969,0.3587642,68617.0,68598.0,0.17587399]
[1771683943170,0.3587642,68617.0,68609.0,0.07287664]
[1771683943679,0.02311062,68623.0,68599.0,0.29154093]
[1771683943908,0.3587642,68627.0,68604.0,0.02294814]
[1771683944115,0.29143424,68627.0,68604.0,0.02294814]
[1771683944478,0.3587642,68618.0,68609.0,0.0728767]
[1771683944617,0.3587642,68618.0,68610.0,0.07287523]
[1771683945144,0.1984942,68618.0,68609.0,0.07287665]
[1771683946341,0.1984942,68618.0,68609.0,0.07309665]
[1771683946584,0.1984942,68618.0,68610.0,0.07287563]
[1771683947237,0.1984942,68618.0,68602.0,0.00022]
[1771683947238,0.02311062,68623.0,68602.0,0.00022]
[1771683947438,0.61218503,68634.0,68602.0,0.00022]
[1771683947439,0.29147076,68618.0,68604.0,0.07288187]
[1771683947646,0.07287236,68614.0,68604.0,0.07288187]
[1771683947899,0.43163713,68613.0,68604.0,0.07288187]
[1771683948191,0.07287236,68614.0,68603.0,0.07288286]
[1771683948192,0.3587642,68611.0,68603.0,0.07288286]
[1771683948400,0.02311062,68611.0,68598.0,0.00022]
[1771683948547,0.11366267,68620.0,68598.0,0.00022]
[1771683948548,0.07288583,68601.0,68598.0,0.00022]
[1771683948741,0.43165003,68601.0,68599.0,0.14283108]
[1771683949001,0.43165003,68601.0,68595.0,0.00022]
[1771683949002,0.3587642,68599.0,68595.0,0.00022]
[1771683949217,0.43165176,68599.0,68595.0,0.00022]
[1771683949422,0.07289393,68593.0,68590.0,0.00016]
[1771683949620,0.07289393,68593.0,68584.0,0.07312315]
[1771683949621,0.07289393,68593.0,68584.0,0.00022]
[1771683949622,0.07289673,68591.0,68584.0,0.00022]
[1771683949929,0.07289563,68592.0,68584.0,0.00022]
[1771683950137,0.07289702,68590.0,68584.0,0.00022]
[1771683950340,0.3587642,68592.0,68584.0,0.00022]
[1771683950549,0.0728886,68598.0,68588.0,0.07289809]
[1771683950830,0.07289061,68596.0,68585.0,0.07290223]
[1771683951031,0.07289345,68594.0,68584.0,0.0731232]
[1771683951329,0.07289362,68594.0,68585.0,0.07290212]
[1771683951712,0.3587642,68593.0,68585.0,0.07290212]
[1771683951922,0.43165824,68593.0,68584.0,0.07312326]
[1771683952124,0.3587642,68593.0,68584.0,0.00022]
[1771683953012,0.3587642,68593.0,68584.0,0.07312322]
[1771683953223,0.4316585,68593.0,68584.0,0.07312322]
[1771683953652,0.3587642,68597.0,68589.0,0.0728978]
[1771683953851,0.3587642,68597.0,68588.0,0.00022]
[1771683953852,0.07289055,68596.0,68588.0,0.00022]
[1771683954068,0.43165475,68596.0,68588.0,0.00022]
[1771683954241,0.3587642,68596.0,68588.0,0.00022]
[1771683954862,0.43165559,68596.0,68588.0,0.00022]
[1771683955057,0.07289193,68595.0,68588.0,0.00022]
[1771683955777,0.43165559,68596.0,68588.0,0.00022]
[1771683956176,0.07289139,68596.0,68588.0,0.00022]
[1771683956978,0.43165559,68596.0,68588.0,0.00022]
[1771683957939,0.29170546,68600.0,68590.0,0.07289666]
[1771683957940,0.0728874,68599.0,68590.0,0.07289666]
[1771683958268,0.00625605,68586.0,68585.0,0.07290208]
[1771683958468,0.07289237,68596.0,68586.0,0.07290117]
[1771683958718,0.07289172,68595.0,68586.0,0.07290117]
[1771683959088,0.43165533,68596.0,68585.0,0.07213565]
[1771683959298,0.3587642,68596.0,68587.0,0.07289983]
[1771683959642,0.3587642,68596.0,68588.0,0.07289904]
[1771683959844,0.3587642,68596.0,68589.0,0.07289797]
[1771683960235,0.3589642,68596.0,68589.0,0.07289797]
[1771683960595,0.3589642,68596.0,68587.0,0.07289917]
[1771683960809,0.3589642,68596.0,68588.0,0.07289891]
[1771683960984,0.43185555,68596.0,68588.0,0.07289898]
[1771683961190,0.3589642,68596.0,68589.0,0.07289786]
[1771683961390,0.0002,68596.0,68589.0,0.07289786]
[1771683961592,0.00016,68600.0,68590.0,0.07289692]
[1771683961757,0.00016,68600.0,68591.0,0.07289586]
[1771683961758,0.07304633,68600.0,68591.0,0.07289586]
[1771683962269,0.07304633,68600.0,68590.0,0.07289692]
[1771683962824,0.07304633,68600.0,68584.0,0.00022]
[1771683962825,0.07290002,68588.0,68584.0,0.00022]
[1771683962997,0.07290002,68588.0,68563.0,0.28792512]
[1771683962998,0.00016,68600.0,68574.0,0.13684938]
[1771683962999,0.3587642,68590.0,68574.0,0.13684938]
[1771683963204,0.3587642,68584.0,68574.0,0.07291362]
[1771683963518,0.3587642,68584.0,68576.0,0.07291088]
[1771683963718,0.07290312,68585.0,68576.0,0.07291088]
[1771683963920,0.07290221,68587.0,68576.0,0.07291088]
[1771683964139,0.07289837,68589.0,68580.0,0.07290725]
[1771683964476,0.43166257,68589.0,68580.0,0.07290725]
[1771683964700,0.02311062,68594.0,68575.0,0.33260381]
[1771683964902,0.3587642,68591.0,68573.0,0.02294814]
[1771683965224,0.02311062,68590.0,68577.0,0.07313054]
[1771683965464,0.45477183,68590.0,68580.0,0.07290653]
[1771683965670,0.45477183,68590.0,68581.0,0.07290644]
[1771683965884,7.948e-05,68591.0,68580.0,0.02294814]
[1771683966230,0.07289265,68596.0,68581.0,0.02294814]
[1771683966436,0.07289265,68596.0,68587.0,0.07289929]
[1771683967055,0.00016,68600.0,68592.0,0.07289381]
[1771683967384,0.00016,68600.0,68592.0,0.07289466]
[1771683967509,0.00016,68600.0,68588.0,0.02294814]
[1771683967719,0.00016,68600.0,68592.0,0.07289472]
[1771683968145,0.07288766,68599.0,68590.0,0.07305686]
[1771683968396,0.07304637,68600.0,68591.0,0.07289496]
[1771683969381,0.35797852,68599.0,68590.0,0.00016]
[1771683969591,0.00016,68600.0,68590.0,0.00016]
[1771683969592,0.02279547,68597.0,68590.0,0.00016]
[1771683969923,0.09568497,68597.0,68590.0,0.00016]
[1771683970059,0.07289064,68596.0,68590.0,0.00016]
[1771683971227,0.02279547,68597.0,68590.0,0.00016]
[1771683971424,0.07289384,68593.0,68590.0,0.00016]
[1771683971656,0.3838458,68596.0,68590.0,0.00016]
[1771683972046,0.45673711,68596.0,68590.0,0.00016]
[1771683972420,0.07289201,68595.0,68590.0,0.00016]
[1771683972626,0.07289071,68596.0,68590.0,0.00016]
[1771683973378,0.3838458,68594.0,68590.0,0.00016]
[1771683973516,0.45674077,68592.0,68584.0,0.07290305]
[1771683973746,0.3838458,68592.0,68585.0,0.21684801]
[1771683974141,0.18412917,68600.0,68587.0,0.07290011]
[1771683974142,0.3838458,68599.0,68587.0,0.07290011]
[1771683974312,0.07288859,68598.0,68589.0,0.07289702]
[1771683974506,0.07288859,68598.0,68590.0,0.1439459]
[1771683974810,0.07288859,68598.0,68589.0,0.07289702]
[1771683975019,0.3838458,68599.0,68590.0,0.21689543]
[1771683975257,0.07304734,68600.0,68588.0,0.07289694]
[1771683975465,0.07288811,68599.0,68590.0,0.07289648]
[1771683975672,0.07288811,68599.0,68591.0,0.14406289]
[1771683975849,0.07288811,68599.0,68585.0,0.02429577]
[1771683975850,0.3838458,68599.0,68585.0,0.02429577]
[1771683976019,0.45673666,68596.0,68587.0,0.07289933]
[1771683976227,0.45673666,68596.0,68588.0,0.14406303]
[1771683976429,0.07289195,68595.0,68587.0,0.07289933]
[1771683976591,0.07289195,68595.0,68588.0,0.14414308]
[1771683976790,0.07289195,68595.0,68587.0,0.07290002]
[1771683977018,0.07289195,68595.0,68588.0,0.14414321]
[1771683977372,0.07289195,68595.0,68589.0,0.14424537]
[1771683977558,0.07288842,68598.0,68590.0,0.05757542]
[1771683977753,0.07288842,68598.0,68582.0,0.07290501]
[1771683977754,0.40871513,68597.0,68582.0,0.11390124]
[1771683977955,0.40871513,68597.0,68583.0,0.02429577]
[1771683978155,0.07289054,68596.0,68585.0,0.07290217]
[1771683978331,0.45673927,68594.0,68585.0,0.07290217]
[1771683978544,0.14577539,68593.0,68585.0,0.07290217]
[1771683978941,0.14577539,68593.0,68586.0,0.05479601]
[1771683979145,0.14577539,68592.0,68585.0,0.07290194]
[1771683979355,0.14577539,68591.0,68585.0,0.07290194]
[1771683979531,0.3838458,68596.0,68583.0,0.09719961]
[1771683979532,0.14577539,68590.0,68583.0,0.09719961]
[1771683979724,0.14577539,68589.0,68583.0,0.09719961]
[1771683979928,0.14577539,68588.0,68584.0,0.07290291]
[1771683980147,0.0728957,68592.0,68584.0,0.07290291]
[1771683980148,0.14577539,68587.0,68584.0,0.07290291]
[1771683980350,0.0728957,68592.0,68583.0,0.09719961]
[1771683980548,0.07289587,68591.0,68583.0,0.09719961]
[1771683980723,0.07289493,68592.0,68583.0,0.09719961]
[1771683981099,0.07289493,68592.0,68585.0,0.00022]
[1771683981427,0.07289493,68592.0,68584.0,0.07250175]
[1771683981652,0.07289493,68592.0,68584.0,0.07150175]
[1771683981996,0.07289493,68592.0,68584.0,0.07089339]
[1771683983705,0.33531731,68593.0,68584.0,0.07089339]
[1771683984063,0.14579065,68592.0,68584.0,0.07089339]
[1771683984258,0.07289394,68593.0,68584.0,0.07089339]
[1771683984259,0.14579065,68591.0,68584.0,0.07089339]
[1771683984487,0.14579065,68590.0,68584.0,0.07089339]
[1771683984689,0.02486933,68597.0,68583.0,0.02429577]
[1771683984690,0.11663272,68596.0,68583.0,0.02429577]
[1771683984861,0.3838458,68596.0,68583.0,0.02429577]
[1771683985286,0.07289187,68595.0,68585.0,0.07290139]
[1771683985518,0.0728927,68594.0,68585.0,0.0729017]
[1771683986681,0.3838458,68595.0,68583.0,0.02429577]
[1771683986900,0.38368779,68595.0,68583.0,0.02429577]
[1771683987101,0.3838458,68597.0,68583.0,0.02429577]
[1771683987301,0.0136676,68596.0,68587.0,0.07289945]
[1771683987477,0.48160552,68597.0,68587.0,0.07289945]
[1771683987821,0.01366759,68596.0,68587.0,0.07289945]
[1771683988118,0.48160552,68597.0,68587.0,0.07289945]
[1771683988326,0.39751339,68596.0,68587.0,0.07289945]
[1771683988476,0.3838458,68596.0,68587.0,0.07289945]
[1771683988877,0.45673678,68596.0,68587.0,0.07289945]
[1771683989274,0.07289219,68595.0,68586.0,0.07290097]
[1771683989497,0.3838458,68595.0,68585.0,0.07290018]
[1771683989692,0.3838458,68595.0,68583.0,0.02451577]
[1771683989693,0.02486933,68595.0,68583.0,0.00022]
[1771683989899,0.01366796,68594.0,68583.0,0.00022]
[1771683990156,0.48160679,68595.0,68586.0,0.07290088]
[1771683990707,0.45673857,68594.0,68585.0,0.07290217]
[1771683990904,0.3838458,68594.0,68585.0,0.07290217]
[1771683991325,0.02486933,68596.0,68583.0,0.00022]
[1771683991673,0.02486933,68596.0,68585.0,0.07290171]
[1771683991674,0.07289281,68594.0,68585.0,0.07290171]
[1771683991863,0.07273474,68594.0,68585.0,0.07290171]
[1771683992370,0.45658054,68594.0,68585.0,0.07290171]
[1771683993159,0.45674299,68590.0,68583.0,0.00022]
[1771683993358,0.45658491,68590.0,68583.0,0.00022]
[1771683993591,0.3838458,68590.0,68583.0,0.00022]
[1771683993959,0.3838458,68590.0,68583.0,0.07312428]
[1771683994336,0.45674405,68589.0,68583.0,0.00022]
[1771683994538,0.45658601,68589.0,68583.0,0.00022]
[1771683994859,0.3838458,68587.0,68581.0,7.948e-05]
[1771683995041,0.3838458,68587.0,68577.0,0.07313014]
[1771683995042,0.02486933,68588.0,68577.0,0.00022]
[1771683995043,0.07290421,68584.0,68577.0,0.00022]
[1771683995245,0.07290551,68582.0,68577.0,0.00022]
[1771683995473,0.17509047,68590.0,68573.0,0.16637626]
[1771683995474,0.07290861,68579.0,68573.0,0.16637626]
[1771683995674,0.07290868,68579.0,68573.0,0.16649322]
[1771683996390,0.07290868,68579.0,68571.0,0.00022]
[1771683996391,0.3838458,68577.0,68571.0,0.00022]
[1771683996536,0.07291378,68575.0,68571.0,0.00022]
[1771683996775,0.07291378,68575.0,68570.0,0.00038]
[1771683996776,0.3838458,68574.0,68570.0,0.00038]
[1771683996990,0.07291403,68574.0,68570.0,0.00038]
[1771683997188,0.45676156,68573.0,68570.0,0.00038]
[1771683997414,0.45676156,68573.0,68554.0,0.29173673]
[1771683997415,0.45676156,68573.0,68548.0,0.31612916]
[1771683997416,0.3838458,68568.0,68548.0,0.31612916]
[1771683997651,0.00011685,68577.0,68554.0,0.02429577]
[1771683997652,0.36400292,68564.0,68554.0,0.02429577]
[1771683997854,0.1457818,68563.0,68556.0,0.07325575]
[1771683998153,0.50978472,68562.0,68556.0,0.000323]
[1771683998347,0.38814406,68562.0,68556.0,0.000323]
[1771683998705,0.38814406,68562.0,68545.0,0.17538]
[1771683998706,0.36400292,68561.0,68553.0,0.07293539]
[1771683998909,0.02414114,68558.0,68548.0,0.29176425]
[1771683999147,0.36400292,68555.0,68548.0,0.29176425]
[1771683999298,0.38798593,68555.0,68548.0,0.29176425]
[1771683999498,0.36400292,68553.0,68552.0,0.07293663]
[1771683999695,0.36416292,68560.0,68552.0,0.07293663]
[1771684000025,0.38814406,68559.0,68552.0,0.07293663]
[1771684000397,0.02414114,68558.0,68552.0,0.0003901]
[1771684000606,0.02414114,68556.0,68551.0,0.07293767]
[1771684000810,0.36400292,68555.0,68551.0,0.07293767]
[1771684001047,0.38814406,68555.0,68551.0,0.07293767]
[1771684001253,0.36400292,68555.0,68552.0,0.07293685]
[1771684001449,0.02414114,68559.0,68552.0,0.07293685]
[1771684001683,0.02398311,68559.0,68552.0,0.07293685]
[1771684001908,0.38798603,68559.0,68552.0,0.07293685]
[1771684003847,0.38798603,68559.0,68552.0,0.07293733]
[1771684005065,0.00016,68560.0,68545.0,0.17538]
[1771684005066,0.2916981,68565.0,68545.0,0.17538]
[1771684005067,0.00016,68570.0,68560.0,0.02313551]
[1771684005263,0.00016,68570.0,68560.0,0.00010805]
[1771684005485,0.0729201,68569.0,68560.0,0.0730367]
[1771684005699,0.0729201,68569.0,68561.0,0.07292768]
[1771684005931,0.43692302,68569.0,68561.0,0.07292768]
[1771684006134,0.43692302,68569.0,68560.0,0.0730366]
[1771684006443,0.43692302,68569.0,68560.0,0.00010805]
[1771684006653,0.36400292,68569.0,68561.0,0.07292755]
[1771684006990,0.4369223,68569.0,68561.0,0.07292755]
[1771684007801,0.4369223,68569.0,68560.0,0.07303665]
[1771684008888,0.4369223,68569.0,68540.0,0.00016]
[1771684008889,0.00016,68560.0,68546.0,0.02313551]
[1771684009084,0.07320664,68560.0,68546.0,0.02313551]
[1771684009332,0.07320664,68560.0,68548.0,0.09607641]
[1771684009333,0.07293011,68559.0,68548.0,0.09607641]
[1771684009691,0.07293099,68558.0,68547.0,0.07294265]
[1771684009889,0.38814406,68557.0,68545.0,0.00022]
[1771684010113,0.07293399,68556.0,68546.0,0.0729434]
[1771684010338,0.46107627,68557.0,68546.0,0.0729434]
[1771684010535,0.43693513,68557.0,68546.0,0.0729434]
[1771684010912,0.07293488,68555.0,68546.0,0.0729434]
[1771684011605,0.07293488,68555.0,68545.0,0.07316269]
[1771684011796,0.07293488,68555.0,68546.0,0.07294357]
[1771684012408,0.0729339,68556.0,68547.0,0.07294219]
[1771684012610,0.0729339,68556.0,68548.0,0.00022]
[1771684012849,0.07293439,68555.0,68548.0,0.00022]
[1771684013002,0.07293519,68556.0,68548.0,0.00022]
[1771684013197,0.07293524,68554.0,68548.0,0.00022]
[1771684013451,0.072937,68553.0,68545.0,0.00022]
[1771684013651,0.43693992,68553.0,68545.0,0.00022]
[1771684013858,0.07293859,68551.0,68545.0,0.00022]
[1771684014058,0.07293757,68552.0,68545.0,0.00022]
[1771684014202,0.07293733,68552.0,68545.0,0.00022]
[1771684015636,0.07293733,68552.0,68543.0,0.07294676]
[1771684016021,0.07293864,68551.0,68543.0,0.07294676]
[1771684016747,0.07293957,68550.0,68542.0,0.07294772]
[1771684016924,0.38814406,68553.0,68541.0,0.00022]
[1771684017417,0.46108064,68553.0,68544.0,0.072945]
[1771684017816,0.02414114,68553.0,68542.0,0.07294797]
[1771684018038,0.36400292,68552.0,68542.0,0.07294788]
[1771684018569,0.07294122,68549.0,68541.0,0.00022]
[1771684018795,0.43694131,68551.0,68542.0,0.07294788]
[1771684018953,0.07293839,68551.0,68542.0,0.07294788]
[1771684019126,0.07293839,68551.0,68542.0,0.07294773]
[1771684019923,0.29171989,68559.0,68542.0,0.07316773]
[1771684020129,0.29200069,68560.0,68542.0,0.07316773]
[1771684020130,0.36400292,68549.0,68542.0,0.00022]
[1771684020331,0.07294499,68545.0,68542.0,0.00022]
[1771684020737,0.07294499,68545.0,68540.0,0.00316]
[1771684020946,0.43694791,68545.0,68538.0,0.000543]
[1771684021150,0.00016,68550.0,68538.0,0.000543]
[1771684021151,0.07310023,68550.0,68540.0,0.07294985]
[1771684021350,0.00016,68550.0,68539.0,0.07295116]
[1771684021563,0.38830406,68550.0,68539.0,0.07295116]
[1771684021768,0.00016,68550.0,68538.0,0.000543]
[1771684021979,0.00016,68550.0,68542.0,0.001]
[1771684021980,0.07294463,68546.0,68542.0,0.001]
[1771684022193,0.36416292,68550.0,68539.0,0.07295056]
[1771684022194,0.07294265,68547.0,68539.0,0.07295056]
[1771684022428,0.07294265,68547.0,68538.0,0.07349496]
[1771684022653,0.07294265,68547.0,68519.0,0.43783344]
[1771684022654,0.36416292,68550.0,68511.0,0.07298013]
[1771684022655,0.02414114,68525.0,68511.0,0.07298013]
[1771684022866,0.36400292,68524.0,68514.0,0.07297694]
[1771684023062,0.07296923,68524.0,68510.0,0.01825707]
[1771684023233,0.0729694,68522.0,68510.0,0.01825707]
[1771684023446,0.07297161,68520.0,68510.0,0.36881599]
[1771684023641,0.07297161,68520.0,68511.0,0.01809707]
[1771684023843,0.07297249,68519.0,68511.0,0.01809707]
[1771684024169,0.07297249,68519.0,68504.0,0.0003875]
[1771684024170,0.07297249,68519.0,68504.0,1e-08]
[1771684024171,0.14535007,68519.0,68504.0,1e-08]
[1771684024338,0.00027679,68520.0,68505.0,0.01809707]
[1771684024530,0.02441793,68520.0,68505.0,0.01809707]
[1771684024843,0.31604333,68517.0,68504.0,1e-08]
[1771684025047,0.07298631,68506.0,68504.0,1e-08]
[1771684025244,0.07298725,68507.0,68504.0,1e-08]
[1771684025245,0.07298737,68505.0,68504.0,1e-08]
[1771684026228,0.07298737,68505.0,68490.0,0.1784]
[1771684026229,0.07298725,68507.0,68490.0,0.1784]
[1771684026230,0.36400292,68507.0,68490.0,0.1784]
[1771684026436,0.07300138,68492.0,68490.0,0.1784]
[1771684026646,0.07300229,68491.0,68490.0,0.1784]
[1771684026875,0.29198475,68497.0,68487.0,0.17524]
[1771684027190,0.0730055,68488.0,68487.0,0.36865599]
[1771684027581,0.07300655,68487.0,68486.0,0.13468788]
[1771684027731,0.07300868,68485.0,68480.0,0.00016]
[1771684028082,0.07300868,68485.0,68481.0,0.17528]
[1771684028083,0.04721182,68485.0,68481.0,0.17528]
[1771684028293,0.04721182,68485.0,68482.0,1e-08]
[1771684028294,0.07301082,68483.0,68482.0,1e-08]
[1771684028697,0.07301082,68483.0,68478.0,0.23644165]
[1771684029053,0.04721182,68485.0,68478.0,0.23644165]
[1771684029258,0.07300981,68484.0,68478.0,0.23644165]
[1771684029458,0.07300981,68484.0,68482.0,0.001]
[1771684029693,0.02157383,68484.0,68478.0,0.23644165]
[1771684030245,0.0730095,68486.0,68478.0,0.23644165]
[1771684030765,0.07300985,68484.0,68478.0,0.23644165]
[1771684030961,0.07300985,68484.0,68478.0,0.001]
[1771684031166,0.07301102,68483.0,68477.0,0.17528]
[1771684031372,0.07300989,68484.0,68477.0,0.17528]